[Event "Titled Tuesday Blitz June 21 Early 2022"]
[White "Simonovic, Miroslav"]
[Black "Arpita, Mukherjee"]
[WhiteFideId "919152"]
[BlackFideId "5056403"]
[WhiteElo "2043"]
[BlackElo "1934"]
[Result "0-1"]
[Round "03"]
[TimeControl "180+1"]
[Date "2022.06.22"]
[WhiteClock "0:00:08"]
[BlackClock "0:01:03"]

1. d4 {[%clk 0:03:00]}  Nf6 {[%clk 0:02:59]} 2. Bg5 {[%clk 0:03:01]}  Ne4 {[%clk 0:02:59]} 3. h4 {[%clk 0:03:01]}  d5 {[%clk 0:02:58]} 4. Nd2 {[%clk 0:03:00]}  Bf5 {[%clk 0:02:58]} 5. Nxe4 {[%clk 0:03:00]}  Bxe4 {[%clk 0:02:58]} 6. f3 {[%clk 0:03:01]}  h6 {[%clk 0:02:58]} 7. Bf4 {[%clk 0:02:59]}  Bh7 {[%clk 0:02:58]} 8. e3 {[%clk 0:02:59]}  e6 {[%clk 0:02:57]} 9. Bd3 {[%clk 0:02:58]}  Bxd3 {[%clk 0:02:57]} 10. Qxd3 {[%clk 0:02:59]}  c6 {[%clk 0:02:51]} 11. Ne2 {[%clk 0:02:52]}  Bd6 {[%clk 0:02:49]} 12. a3 {[%clk 0:02:37]}  Qe7 {[%clk 0:02:44]} 13. h5 {[%clk 0:02:30]}  Nd7 {[%clk 0:02:44]} 14. O-O {[%clk 0:02:27]}  O-O-O {[%clk 0:02:36]} 15. b3 {[%clk 0:02:26]}  g6 {[%clk 0:02:33]} 16. hxg6 {[%clk 0:02:21]}  fxg6 {[%clk 0:02:33]} 17. c4 {[%clk 0:02:20]}  g5 {[%clk 0:02:26]} 18. Bxd6 {[%clk 0:02:15]}  Qxd6 {[%clk 0:02:27]} 19. cxd5 {[%clk 0:02:15]}  exd5 {[%clk 0:02:27]} 20. e4 {[%clk 0:02:12]}  dxe4 {[%clk 0:02:20]} 21. fxe4 {[%clk 0:02:12]}  Nb6 {[%clk 0:02:20]} 22. Rfd1 {[%clk 0:02:03]}  Rhe8 {[%clk 0:02:16]} 23. b4 {[%clk 0:01:53]}  Qe6 {[%clk 0:02:09]} 24. Nc3 {[%clk 0:01:52]}  Qc4 {[%clk 0:02:07]} 25. Qe3 {[%clk 0:01:41]}  Kb8 {[%clk 0:01:56]} 26. Rac1 {[%clk 0:01:39]}  Qb3 {[%clk 0:01:53]} 27. a4 {[%clk 0:01:05]}  Ka8 {[%clk 0:01:49]} 28. b5 {[%clk 0:01:03]}  Nc4 {[%clk 0:01:43]} 29. Qh3 {[%clk 0:00:52]}  cxb5 {[%clk 0:01:28]} 30. axb5 {[%clk 0:00:47]}  Nb2 {[%clk 0:01:22]} 31. Rb1 {[%clk 0:00:33]}  Rc8 {[%clk 0:01:21]} 32. Nd5 {[%clk 0:00:25]}  Qxh3 {[%clk 0:01:21]} 33. gxh3 {[%clk 0:00:24]}  Nxd1 {[%clk 0:01:21]} 34. Rxd1 {[%clk 0:00:24]}  Rxe4 {[%clk 0:01:22]} 35. b6 {[%clk 0:00:21]}  a6 {[%clk 0:01:21]} 36. Nc7+ {[%clk 0:00:20]}  Kb8 {[%clk 0:01:21]} 37. d5 {[%clk 0:00:21]}  Rd8 {[%clk 0:01:22]} 38. d6 {[%clk 0:00:21]}  Rb4 {[%clk 0:01:17]} 39. Ne6 {[%clk 0:00:16]}  Rd7 {[%clk 0:01:09]} 40. Nc5 {[%clk 0:00:15]}  Kc8 {[%clk 0:01:05]} 41. Rc1 {[%clk 0:00:04]}  Rxb6 {[%clk 0:01:03]} 42. Nxd7+ {[%clk 0:00:01]}  Kxd7 {[%clk 0:01:04]} 43. Rc7+ {[%clk 0:00:01]}  Kxd6 {[%clk 0:01:04]} 44. Rh7 {[%clk 0:00:02]}  Kc5 {[%clk 0:01:03]} 45. Kg2 {[%clk 0:00:03]}  a5 {[%clk 0:01:02]} 46. Re7 {[%clk 0:00:03]}  a4 {[%clk 0:01:03]} 47. Re3 {[%clk 0:00:04]}  Ra6 {[%clk 0:01:03]} 48. Ra3 {[%clk 0:00:04]}  b5 {[%clk 0:01:03]} 49. Ra1 {[%clk 0:00:04]}  b4 {[%clk 0:01:03]} 50. Kg3 {[%clk 0:00:05]}  a3 {[%clk 0:01:04]} 51. Kg4 {[%clk 0:00:06]}  b3 {[%clk 0:01:03]} 52. Kh5 {[%clk 0:00:07]}  a2 {[%clk 0:01:04]} 53. Rc1+ {[%clk 0:00:07]}  Kb4 {[%clk 0:01:03]} 54. h4 {[%clk 0:00:07]}  b2 {[%clk 0:01:03]} 55. Rf1 {[%clk 0:00:06]}  b1=Q {[%clk 0:01:01]} 56. hxg5 {[%clk 0:00:07]}  Qxf1 {[%clk 0:01:00]} 57. gxh6 {[%clk 0:00:07]}  Qf5+ {[%clk 0:01:01]} 58. Kh4 {[%clk 0:00:07]}  Rxh6+ {[%clk 0:01:01]} 59. Kg3 {[%clk 0:00:08]}  Rh3+ {[%clk 0:01:02]} 60. Kg2 {[%clk 0:00:08]}  Qf3+ {[%clk 0:01:03]} 0-1


[Site "https://www.chess.com"]

[Event "Titled Tuesday Blitz June 21 Early 2022"]
[White "Steinberg, Nitzan"]
[Black "Flynn, Jacob"]
[WhiteFideId "2801795"]
[BlackFideId "2509393"]
[WhiteElo "2471"]
[BlackElo "1896"]
[Result "1-0"]
[Round "03"]
[TimeControl "180+1"]
[Date "2022.06.21"]
[WhiteClock "0:00:54"]
[BlackClock "0:00:05"]

1. e4 {[%clk 0:03:00]}  e5 {[%clk 0:02:59]} 2. Nf3 {[%clk 0:03:01]}  Nc6 {[%clk 0:03:00]} 3. Bb5 {[%clk 0:03:01]}  a6 {[%clk 0:03:01]} 4. Ba4 {[%clk 0:03:02]}  Nf6 {[%clk 0:03:01]} 5. O-O {[%clk 0:03:02]}  Be7 {[%clk 0:03:02]} 6. Re1 {[%clk 0:03:02]}  b5 {[%clk 0:03:03]} 7. Bb3 {[%clk 0:03:03]}  O-O {[%clk 0:03:03]} 8. h3 {[%clk 0:03:02]}  Bb7 {[%clk 0:02:56]} 9. d3 {[%clk 0:03:01]}  d6 {[%clk 0:02:56]} 10. a3 {[%clk 0:03:01]}  h6 {[%clk 0:02:49]} 11. Nc3 {[%clk 0:03:01]}  Re8 {[%clk 0:02:43]} 12. Ne2 {[%clk 0:02:57]}  Bf8 {[%clk 0:02:42]} 13. Ng3 {[%clk 0:02:57]}  Ne7 {[%clk 0:02:42]} 14. Nh4 {[%clk 0:02:56]}  d5 {[%clk 0:01:55]} 15. Qf3 {[%clk 0:02:50]}  Qd6 {[%clk 0:01:43]} 16. Ba2 {[%clk 0:02:11]}  Rad8 {[%clk 0:01:27]} 17. Be3 {[%clk 0:02:07]}  Bc8 {[%clk 0:01:24]} 18. Rad1 {[%clk 0:02:03]}  d4 {[%clk 0:01:13]} 19. Bd2 {[%clk 0:01:57]}  Be6 {[%clk 0:01:13]} 20. Ngf5 {[%clk 0:01:41]}  Nxf5 {[%clk 0:01:08]} 21. Nxf5 {[%clk 0:01:40]}  Bxf5 {[%clk 0:01:04]} 22. Qxf5 {[%clk 0:01:27]}  Rd7 {[%clk 0:01:04]} 23. f4 {[%clk 0:01:22]}  Nh7 {[%clk 0:00:52]} 24. Rf1 {[%clk 0:01:18]}  g6 {[%clk 0:00:52]} 25. Qg4 {[%clk 0:01:11]}  h5 {[%clk 0:00:44]} 26. Qg3 {[%clk 0:01:09]}  Kg7 {[%clk 0:00:10]} 27. Rf2 {[%clk 0:01:07]}  Qf6 {[%clk 0:00:07]} 28. Rdf1 {[%clk 0:01:06]}  Bd6 {[%clk 0:00:06]} 29. fxe5 {[%clk 0:00:58]}  Qxe5 {[%clk 0:00:07]} 30. Rxf7+ {[%clk 0:00:58]}  Rxf7 {[%clk 0:00:07]} 31. Rxf7+ {[%clk 0:00:58]}  Kh8 {[%clk 0:00:07]} 32. Qxg6 {[%clk 0:00:54]}  Qh2+ {[%clk 0:00:06]} 33. Kf1 {[%clk 0:00:54]}  Rg8 {[%clk 0:00:05]} 34. Qxh7# {[%clk 0:00:54]} 1-0


[Site "https://www.chess.com"]

[Event "Titled Tuesday Blitz June 21 Early 2022"]
[White "Szente Varga, Fruzsina"]
[Black "Luo, Terry"]
[WhiteFideId "712264"]
[BlackFideId "30931045"]
[WhiteElo "1994"]
[BlackElo "2024"]
[Result "0-1"]
[Round "03"]
[TimeControl "180+1"]
[Date "2022.06.22"]
[WhiteClock "0:00:14"]
[BlackClock "0:00:22"]

1. e4 {[%clk 0:03:00]}  c5 {[%clk 0:02:59]} 2. Nf3 {[%clk 0:03:00]}  d6 {[%clk 0:02:58]} 3. d4 {[%clk 0:03:00]}  cxd4 {[%clk 0:02:58]} 4. Qxd4 {[%clk 0:03:01]}  a6 {[%clk 0:02:58]} 5. c4 {[%clk 0:03:00]}  Nc6 {[%clk 0:02:57]} 6. Qd2 {[%clk 0:02:58]}  Nf6 {[%clk 0:02:55]} 7. Nc3 {[%clk 0:02:57]}  g6 {[%clk 0:02:54]} 8. Be2 {[%clk 0:02:53]}  Bg7 {[%clk 0:02:54]} 9. O-O {[%clk 0:02:52]}  O-O {[%clk 0:02:54]} 10. h3 {[%clk 0:02:52]}  Be6 {[%clk 0:02:50]} 11. Rb1 {[%clk 0:02:51]}  Ne5 {[%clk 0:02:50]} 12. b3 {[%clk 0:02:35]}  Nxf3+ {[%clk 0:02:44]} 13. Bxf3 {[%clk 0:02:35]}  Nd7 {[%clk 0:02:45]} 14. e5 {[%clk 0:02:22]}  Nxe5 {[%clk 0:02:21]} 15. Bxb7 {[%clk 0:02:21]}  Ra7 {[%clk 0:02:21]} 16. Be4 {[%clk 0:02:20]}  Qc7 {[%clk 0:02:09]} 17. f4 {[%clk 0:02:16]}  Nc6 {[%clk 0:02:01]} 18. f5 {[%clk 0:02:11]}  gxf5 {[%clk 0:01:45]} 19. Bxf5 {[%clk 0:02:11]}  Bxf5 {[%clk 0:01:46]} 20. Rxf5 {[%clk 0:02:11]}  e6 {[%clk 0:01:37]} 21. Rg5 {[%clk 0:02:09]}  Ne5 {[%clk 0:01:31]} 22. Qf2 {[%clk 0:01:52]}  Ng6 {[%clk 0:01:23]} 23. Ne4 {[%clk 0:01:47]}  f5 {[%clk 0:01:10]} 24. Nd2 {[%clk 0:00:50]}  Qc5 {[%clk 0:01:06]} 25. Qxc5 {[%clk 0:00:46]}  dxc5 {[%clk 0:01:07]} 26. Nf3 {[%clk 0:00:45]}  Rd7 {[%clk 0:01:06]} 27. Be3 {[%clk 0:00:33]}  Bh6 {[%clk 0:01:03]} 28. Rxg6+ {[%clk 0:00:31]}  hxg6 {[%clk 0:01:02]} 29. Bxh6 {[%clk 0:00:32]}  Rfd8 {[%clk 0:01:02]} 30. Kh2 {[%clk 0:00:30]}  Rd1 {[%clk 0:01:02]} 31. Rb2 {[%clk 0:00:30]}  a5 {[%clk 0:00:44]} 32. Bg5 {[%clk 0:00:28]}  Rb8 {[%clk 0:00:42]} 33. Ne5 {[%clk 0:00:27]}  a4 {[%clk 0:00:39]} 34. Nd7 {[%clk 0:00:27]}  Rxd7 {[%clk 0:00:33]} 35. Re2 {[%clk 0:00:24]}  axb3 {[%clk 0:00:32]} 36. axb3 {[%clk 0:00:23]}  Kf7 {[%clk 0:00:33]} 37. Re3 {[%clk 0:00:22]}  Rdb7 {[%clk 0:00:33]} 38. Re5 {[%clk 0:00:19]}  Rc8 {[%clk 0:00:30]} 39. Be3 {[%clk 0:00:20]}  Rxb3 {[%clk 0:00:30]} 40. Bxc5 {[%clk 0:00:20]}  Rc3 {[%clk 0:00:29]} 41. Bf2 {[%clk 0:00:19]}  R3xc4 {[%clk 0:00:29]} 42. Bg3 {[%clk 0:00:20]}  Re4 {[%clk 0:00:29]} 43. Ra5 {[%clk 0:00:20]}  f4 {[%clk 0:00:29]} 44. Bh4 {[%clk 0:00:19]}  Rc2 {[%clk 0:00:27]} 45. Ra7+ {[%clk 0:00:19]}  Kf8 {[%clk 0:00:28]} 46. Bg5 {[%clk 0:00:19]}  f3 {[%clk 0:00:26]} 47. Bh6+ {[%clk 0:00:16]}  Ke8 {[%clk 0:00:26]} 48. Kg3 {[%clk 0:00:17]}  fxg2 {[%clk 0:00:26]} 49. Ra1 {[%clk 0:00:15]}  Rce2 {[%clk 0:00:25]} 50. Rg1 {[%clk 0:00:15]}  Kf7 {[%clk 0:00:24]} 51. h4 {[%clk 0:00:14]}  Kf6 {[%clk 0:00:23]} 52. Bg5+ {[%clk 0:00:14]}  Kf5 {[%clk 0:00:23]} 53. Kh3 {[%clk 0:00:14]}  Ra4 {[%clk 0:00:22]} 54. Kh2 {[%clk 0:00:14]}  Raa2 {[%clk 0:00:22]} 55. Kg3 {[%clk 0:00:14]}  Ke4 {[%clk 0:00:22]} 56. Kh2 {[%clk 0:00:14]}  Kf3 {[%clk 0:00:22]} 57. Kh3 {[%clk 0:00:14]}  Rf2 {[%clk 0:00:21]} 58. Kh2 {[%clk 0:00:14]}  Rf1 {[%clk 0:00:22]} 0-1


[Site "https://www.chess.com"]

[Event "Titled Tuesday Blitz June 21 Early 2022"]
[White "Tari, Aryan"]
[Black "Lianes Garcia, Marcos"]
[WhiteFideId "1510045"]
[BlackFideId "32060777"]
[WhiteElo "2567"]
[BlackElo "2310"]
[Result "1-0"]
[Round "03"]
[TimeControl "180+1"]
[Date "2022.06.21"]
[WhiteClock "0:00:55"]
[BlackClock "0:00:10"]

1. e4 {[%clk 0:03:00]}  g6 {[%clk 0:03:00]} 2. d4 {[%clk 0:03:00]}  Bg7 {[%clk 0:03:01]} 3. Nf3 {[%clk 0:02:58]}  c5 {[%clk 0:03:01]} 4. d5 {[%clk 0:02:55]}  d6 {[%clk 0:02:58]} 5. Bb5+ {[%clk 0:02:55]}  Bd7 {[%clk 0:02:58]} 6. a4 {[%clk 0:02:55]}  Nf6 {[%clk 0:02:58]} 7. Nc3 {[%clk 0:02:54]}  O-O {[%clk 0:02:59]} 8. O-O {[%clk 0:02:54]}  e6 {[%clk 0:02:59]} 9. Bf4 {[%clk 0:02:29]}  exd5 {[%clk 0:02:36]} 10. Bxd6 {[%clk 0:02:16]}  Bxb5 {[%clk 0:01:51]} 11. Nxb5 {[%clk 0:02:07]}  Nxe4 {[%clk 0:01:51]} 12. Bxf8 {[%clk 0:02:04]}  Kxf8 {[%clk 0:01:51]} 13. c4 {[%clk 0:01:53]}  a6 {[%clk 0:01:43]} 14. Nc3 {[%clk 0:01:53]}  Nxc3 {[%clk 0:01:38]} 15. bxc3 {[%clk 0:01:54]}  d4 {[%clk 0:01:39]} 16. Rb1 {[%clk 0:01:49]}  Nc6 {[%clk 0:01:13]} 17. cxd4 {[%clk 0:01:49]}  cxd4 {[%clk 0:01:10]} 18. Rxb7 {[%clk 0:01:49]}  Na5 {[%clk 0:01:10]} 19. Rb1 {[%clk 0:01:45]}  Nxc4 {[%clk 0:01:09]} 20. Qd3 {[%clk 0:01:45]}  Ne5 {[%clk 0:01:02]} 21. Nxe5 {[%clk 0:01:45]}  Bxe5 {[%clk 0:01:03]} 22. Rfc1 {[%clk 0:01:45]}  Kg7 {[%clk 0:01:02]} 23. g3 {[%clk 0:01:44]}  h5 {[%clk 0:01:00]} 24. Rb7 {[%clk 0:01:43]}  Qd5 {[%clk 0:00:58]} 25. Rb2 {[%clk 0:01:29]}  h4 {[%clk 0:00:54]} 26. Rbc2 {[%clk 0:01:27]}  hxg3 {[%clk 0:00:50]} 27. fxg3 {[%clk 0:01:23]}  Bf6 {[%clk 0:00:46]} 28. Rf1 {[%clk 0:01:17]}  Bg5 {[%clk 0:00:41]} 29. Qf3 {[%clk 0:01:09]}  Be3+ {[%clk 0:00:40]} 30. Kg2 {[%clk 0:01:09]}  Qxf3+ {[%clk 0:00:37]} 31. Kxf3 {[%clk 0:01:09]}  Rd8 {[%clk 0:00:36]} 32. Rc7 {[%clk 0:01:08]}  Kh6 {[%clk 0:00:13]} 33. Rxf7 {[%clk 0:01:06]}  Rd5 {[%clk 0:00:12]} 34. Ke4 {[%clk 0:01:06]}  Ra5 {[%clk 0:00:12]} 35. h4 {[%clk 0:00:57]}  Rxa4 {[%clk 0:00:13]} 36. g4 {[%clk 0:00:58]}  Bd2 {[%clk 0:00:12]} 37. Rd7 {[%clk 0:00:56]}  Bc3 {[%clk 0:00:10]} 38. Rff7 {[%clk 0:00:55]} 1-0


[Site "https://www.chess.com"]

[Event "Titled Tuesday Blitz June 21 Early 2022"]
[White "Thiel, Thomas"]
[Black "Przybylski, Wojciech"]
[WhiteFideId "4615964"]
[BlackFideId "1117599"]
[WhiteElo "2227"]
[BlackElo "2133"]
[Result "0-1"]
[Round "03"]
[TimeControl "180+1"]
[Date "2022.06.22"]
[WhiteClock "0:00:42"]
[BlackClock "0:00:02"]

1. e4 {[%clk 0:03:00]}  c5 {[%clk 0:02:59]} 2. Nc3 {[%clk 0:02:58]}  e5 {[%clk 0:02:56]} 3. Nge2 {[%clk 0:02:52]}  Bd6 {[%clk 0:02:54]} 4. Nd5 {[%clk 0:02:50]}  Ne7 {[%clk 0:02:53]} 5. Nec3 {[%clk 0:02:49]}  Nbc6 {[%clk 0:02:53]} 6. Bc4 {[%clk 0:02:48]}  Nxd5 {[%clk 0:02:41]} 7. Nxd5 {[%clk 0:02:47]}  Ne7 {[%clk 0:02:41]} 8. O-O {[%clk 0:02:44]}  O-O {[%clk 0:02:39]} 9. d3 {[%clk 0:02:42]}  b5 {[%clk 0:02:35]} 10. Bxb5 {[%clk 0:02:39]}  Nxd5 {[%clk 0:02:35]} 11. exd5 {[%clk 0:02:39]}  f5 {[%clk 0:02:35]} 12. f4 {[%clk 0:02:35]}  Bb7 {[%clk 0:02:28]} 13. Bc4 {[%clk 0:02:33]}  Qf6 {[%clk 0:02:06]} 14. c3 {[%clk 0:02:29]}  Kh8 {[%clk 0:02:04]} 15. Qf3 {[%clk 0:02:25]}  Rae8 {[%clk 0:01:59]} 16. Qf2 {[%clk 0:02:14]}  e4 {[%clk 0:01:57]} 17. dxe4 {[%clk 0:02:12]}  Rxe4 {[%clk 0:01:32]} 18. Bd3 {[%clk 0:02:11]}  Bxd5 {[%clk 0:01:32]} 19. Bxe4 {[%clk 0:02:10]}  fxe4 {[%clk 0:01:32]} 20. Be3 {[%clk 0:02:07]}  Qe7 {[%clk 0:01:30]} 21. Qd2 {[%clk 0:02:02]}  Bc4 {[%clk 0:01:27]} 22. Rfd1 {[%clk 0:01:44]}  Bd3 {[%clk 0:01:26]} 23. a3 {[%clk 0:01:32]}  Bc7 {[%clk 0:01:18]} 24. c4 {[%clk 0:01:31]}  d6 {[%clk 0:01:18]} 25. b4 {[%clk 0:01:28]}  h6 {[%clk 0:00:56]} 26. Qc3 {[%clk 0:01:24]}  Rf6 {[%clk 0:00:37]} 27. Rxd3 {[%clk 0:01:19]}  exd3 {[%clk 0:00:36]} 28. Qxd3 {[%clk 0:01:20]}  Re6 {[%clk 0:00:28]} 29. Bf2 {[%clk 0:01:19]}  Re2 {[%clk 0:00:25]} 30. Rd1 {[%clk 0:01:01]}  Qe4 {[%clk 0:00:10]} 31. Qxe4 {[%clk 0:01:00]}  Rxe4 {[%clk 0:00:10]} 32. bxc5 {[%clk 0:00:57]}  dxc5 {[%clk 0:00:10]} 33. Bxc5 {[%clk 0:00:55]}  Rxc4 {[%clk 0:00:10]} 34. Bxa7 {[%clk 0:00:54]}  Bxf4 {[%clk 0:00:10]} 35. Rd5 {[%clk 0:00:46]}  Bc1 {[%clk 0:00:03]} 36. Rc5 {[%clk 0:00:42]}  Be3+ {[%clk 0:00:02]} 0-1


[Site "https://www.chess.com"]

[Event "Titled Tuesday Blitz June 21 Early 2022"]
[White "Tica, Sven"]
[Black "Borgaonkar Akshay"]
[WhiteFideId "14526948"]
[BlackFideId "25639110"]
[WhiteElo "2346"]
[BlackElo "1660"]
[Result "1-0"]
[Round "03"]
[TimeControl "180+1"]
[Date "2022.06.22"]
[WhiteClock "0:00:21"]
[BlackClock "0:00:04"]

1. d4 {[%clk 0:03:00]}  Nf6 {[%clk 0:02:59]} 2. Bg5 {[%clk 0:02:56]}  d5 {[%clk 0:02:55]} 3. Bxf6 {[%clk 0:02:53]}  exf6 {[%clk 0:02:51]} 4. g3 {[%clk 0:02:48]}  g6 {[%clk 0:02:51]} 5. Bg2 {[%clk 0:02:48]}  f5 {[%clk 0:02:51]} 6. e3 {[%clk 0:02:48]}  Bg7 {[%clk 0:02:51]} 7. Ne2 {[%clk 0:02:49]}  O-O {[%clk 0:02:52]} 8. O-O {[%clk 0:02:49]}  c6 {[%clk 0:02:52]} 9. Nd2 {[%clk 0:02:50]}  Nd7 {[%clk 0:02:52]} 10. c4 {[%clk 0:02:50]}  Nf6 {[%clk 0:02:52]} 11. Nc3 {[%clk 0:02:45]}  Ne4 {[%clk 0:02:47]} 12. cxd5 {[%clk 0:02:43]}  cxd5 {[%clk 0:02:46]} 13. Rc1 {[%clk 0:02:42]}  Be6 {[%clk 0:02:44]} 14. Ne2 {[%clk 0:02:38]}  Rc8 {[%clk 0:02:38]} 15. Nf4 {[%clk 0:02:38]}  Rxc1 {[%clk 0:02:33]} 16. Qxc1 {[%clk 0:02:39]}  Qc8 {[%clk 0:02:33]} 17. Nb3 {[%clk 0:02:37]}  b6 {[%clk 0:02:22]} 18. Qxc8 {[%clk 0:02:32]}  Rxc8 {[%clk 0:02:21]} 19. Rc1 {[%clk 0:02:33]}  Rxc1+ {[%clk 0:02:02]} 20. Nxc1 {[%clk 0:02:34]}  g5 {[%clk 0:01:56]} 21. Nfd3 {[%clk 0:02:28]}  Bf8 {[%clk 0:01:53]} 22. Kf1 {[%clk 0:02:26]}  f6 {[%clk 0:01:51]} 23. Ke2 {[%clk 0:02:23]}  Kf7 {[%clk 0:01:45]} 24. Bh3 {[%clk 0:02:20]}  Nd6 {[%clk 0:01:37]} 25. Kd2 {[%clk 0:02:02]}  Nc4+ {[%clk 0:01:36]} 26. Kc3 {[%clk 0:02:01]}  a5 {[%clk 0:01:34]} 27. Ne2 {[%clk 0:01:55]}  Nd6 {[%clk 0:01:26]} 28. Bg2 {[%clk 0:01:47]}  Nb5+ {[%clk 0:01:12]} 29. Kc2 {[%clk 0:01:46]}  Nc7 {[%clk 0:01:11]} 30. a3 {[%clk 0:01:27]}  Bc8 {[%clk 0:01:06]} 31. Nc3 {[%clk 0:01:26]}  Ke6 {[%clk 0:01:06]} 32. h4 {[%clk 0:01:23]}  Ba6 {[%clk 0:01:02]} 33. Ne1 {[%clk 0:01:07]}  b5 {[%clk 0:00:55]} 34. Nf3 {[%clk 0:01:04]}  b4 {[%clk 0:00:55]} 35. axb4 {[%clk 0:01:05]}  axb4 {[%clk 0:00:55]} 36. Nb1 {[%clk 0:01:04]}  h6 {[%clk 0:00:47]} 37. Nbd2 {[%clk 0:01:04]}  Bb5 {[%clk 0:00:31]} 38. Nb3 {[%clk 0:01:01]}  Ba4 {[%clk 0:00:32]} 39. Nd2 {[%clk 0:01:01]}  Nb5 {[%clk 0:00:29]} 40. Kd3 {[%clk 0:00:59]}  Na7 {[%clk 0:00:26]} 41. Bf3 {[%clk 0:00:49]}  Bb5+ {[%clk 0:00:24]} 42. Kc2 {[%clk 0:00:49]}  Ba4 {[%clk 0:00:23]} 43. Kc1 {[%clk 0:00:44]}  Bd6 {[%clk 0:00:21]} 44. Be2 {[%clk 0:00:34]}  Bb5 {[%clk 0:00:15]} 45. Bxb5 {[%clk 0:00:26]}  Nxb5 {[%clk 0:00:16]} 46. Nf3 {[%clk 0:00:27]}  Nc7 {[%clk 0:00:06]} 47. Kd2 {[%clk 0:00:26]}  Nb5 {[%clk 0:00:06]} 48. Kd3 {[%clk 0:00:26]}  Nc7 {[%clk 0:00:05]} 49. Nc1 {[%clk 0:00:21]}  Nb5 {[%clk 0:00:05]} 50. Kc2 {[%clk 0:00:21]}  Nc7 {[%clk 0:00:04]} 51. Nd3 {[%clk 0:00:21]} 1-0


[Site "https://www.chess.com"]

[Event "Titled Tuesday Blitz June 21 Early 2022"]
[White "Tinmaz, Kerem"]
[Black "Gracia Alvarez, Gerardo Antonio"]
[WhiteFideId "44559151"]
[BlackFideId "5109124"]
[WhiteElo "1443"]
[BlackElo "2139"]
[Result "0-1"]
[Round "03"]
[TimeControl "180+1"]
[Date "2022.06.22"]
[WhiteClock "0:00:01"]
[BlackClock "0:00:02"]

1. e4 {[%clk 0:02:59]}  c5 {[%clk 0:03:00]} 2. Nc3 {[%clk 0:02:59]}  Nc6 {[%clk 0:03:00]} 3. Bb5 {[%clk 0:02:59]}  Nd4 {[%clk 0:03:01]} 4. Bc4 {[%clk 0:02:59]}  e6 {[%clk 0:02:54]} 5. Nge2 {[%clk 0:02:59]}  a6 {[%clk 0:02:54]} 6. a4 {[%clk 0:02:59]}  Nf6 {[%clk 0:02:43]} 7. O-O {[%clk 0:02:59]}  d5 {[%clk 0:02:33]} 8. exd5 {[%clk 0:02:59]}  exd5 {[%clk 0:02:34]} 9. Ba2 {[%clk 0:02:59]}  Be7 {[%clk 0:02:32]} 10. d3 {[%clk 0:02:52]}  Nxe2+ {[%clk 0:02:30]} 11. Qxe2 {[%clk 0:02:51]}  O-O {[%clk 0:02:30]} 12. Bg5 {[%clk 0:02:48]}  Be6 {[%clk 0:02:29]} 13. Qf3 {[%clk 0:02:44]}  d4 {[%clk 0:02:13]} 14. Bxe6 {[%clk 0:02:13]}  dxc3 {[%clk 0:02:10]} 15. Bc4 {[%clk 0:01:59]}  cxb2 {[%clk 0:02:07]} 16. Rab1 {[%clk 0:01:46]}  h6 {[%clk 0:02:07]} 17. Be3 {[%clk 0:01:39]}  b5 {[%clk 0:01:33]} 18. axb5 {[%clk 0:01:22]}  axb5 {[%clk 0:01:34]} 19. Bxb5 {[%clk 0:01:23]}  Rb8 {[%clk 0:01:29]} 20. Rxb2 {[%clk 0:01:17]}  Nd5 {[%clk 0:01:23]} 21. Rb3 {[%clk 0:00:50]}  Qd6 {[%clk 0:00:46]} 22. Bc4 {[%clk 0:00:48]}  Nxe3 {[%clk 0:00:45]} 23. fxe3 {[%clk 0:00:44]}  Rxb3 {[%clk 0:00:44]} 24. Bxb3 {[%clk 0:00:30]}  Bf6 {[%clk 0:00:43]} 25. Qd5 {[%clk 0:00:18]}  Qe7 {[%clk 0:00:40]} 26. e4 {[%clk 0:00:17]}  Kh8 {[%clk 0:00:20]} 27. Rf5 {[%clk 0:00:16]}  Bd4+ {[%clk 0:00:20]} 28. Kh1 {[%clk 0:00:16]}  f6 {[%clk 0:00:20]} 29. Qe6 {[%clk 0:00:12]}  Qa7 {[%clk 0:00:20]} 30. Rf1 {[%clk 0:00:10]}  Qa5 {[%clk 0:00:18]} 31. Qd6 {[%clk 0:00:09]}  Rd8 {[%clk 0:00:17]} 32. Qe6 {[%clk 0:00:06]}  Qd2 {[%clk 0:00:15]} 33. Qf5 {[%clk 0:00:05]}  Qe3 {[%clk 0:00:12]} 34. Qf3 {[%clk 0:00:04]}  Qg5 {[%clk 0:00:12]} 35. Qg3 {[%clk 0:00:04]}  Qd2 {[%clk 0:00:10]} 36. Qc7 {[%clk 0:00:04]}  Rf8 {[%clk 0:00:09]} 37. Qg3 {[%clk 0:00:04]}  Be5 {[%clk 0:00:08]} 38. Qf2 {[%clk 0:00:03]}  Qg5 {[%clk 0:00:08]} 39. Qxc5 {[%clk 0:00:03]}  Ra8 {[%clk 0:00:07]} 40. Qf2 {[%clk 0:00:02]}  Qh5 {[%clk 0:00:06]} 41. h3 {[%clk 0:00:02]}  Qg5 {[%clk 0:00:06]} 42. Qf5 {[%clk 0:00:01]}  Qg3 {[%clk 0:00:05]} 43. Kg1 {[%clk 0:00:02]}  Qh2+ {[%clk 0:00:05]} 44. Kf2 {[%clk 0:00:02]}  Qg3+ {[%clk 0:00:05]} 45. Kg1 {[%clk 0:00:02]}  Qh2+ {[%clk 0:00:04]} 46. Kf2 {[%clk 0:00:02]}  Bd4+ {[%clk 0:00:05]} 47. Kf3 {[%clk 0:00:01]}  Be5 {[%clk 0:00:04]} 48. Qg4 {[%clk 0:00:01]}  Rc8 {[%clk 0:00:03]} 49. Ke2 {[%clk 0:00:01]}  Rd8 {[%clk 0:00:03]} 50. Rf2 {[%clk 0:00:01]}  Qg1 {[%clk 0:00:03]} 51. Rf1 {[%clk 0:00:01]}  Qd4 {[%clk 0:00:03]} 52. Qf5 {[%clk 0:00:01]}  Qc3 {[%clk 0:00:03]} 53. Qf3 {[%clk 0:00:02]}  g5 {[%clk 0:00:02]} 54. h4 {[%clk 0:00:01]}  Bf4 {[%clk 0:00:02]} 0-1


[Site "https://www.chess.com"]

[Event "Titled Tuesday Blitz June 21 Early 2022"]
[White "Todorovic, Bojan"]
[Black "Perez Gormaz, Matias"]
[WhiteFideId "917087"]
[BlackFideId "3406342"]
[WhiteElo "2266"]
[BlackElo "2341"]
[Result "0-1"]
[Round "03"]
[TimeControl "180+1"]
[Date "2022.06.22"]
[WhiteClock "0:01:11"]
[BlackClock "0:01:00"]

1. d4 {[%clk 0:02:57]}  d5 {[%clk 0:02:59]} 2. c4 {[%clk 0:02:55]}  e6 {[%clk 0:03:00]} 3. Nc3 {[%clk 0:02:54]}  a6 {[%clk 0:02:59]} 4. cxd5 {[%clk 0:02:53]}  exd5 {[%clk 0:03:00]} 5. Nf3 {[%clk 0:02:49]}  c6 {[%clk 0:03:00]} 6. Bg5 {[%clk 0:02:42]}  Be7 {[%clk 0:02:59]} 7. h4 {[%clk 0:02:37]}  Qb6 {[%clk 0:02:51]} 8. Qd2 {[%clk 0:02:28]}  Bf5 {[%clk 0:02:45]} 9. e3 {[%clk 0:02:21]}  Nd7 {[%clk 0:02:44]} 10. O-O-O {[%clk 0:02:17]}  Ngf6 {[%clk 0:02:38]} 11. Bd3 {[%clk 0:02:16]}  Ne4 {[%clk 0:01:56]} 12. Bxe4 {[%clk 0:02:13]}  dxe4 {[%clk 0:01:55]} 13. Bxe7 {[%clk 0:01:59]}  exf3 {[%clk 0:01:55]} 14. Bd6 {[%clk 0:01:58]}  fxg2 {[%clk 0:01:52]} 15. Rhg1 {[%clk 0:01:59]}  O-O-O {[%clk 0:01:50]} 16. Rxg2 {[%clk 0:01:57]}  g6 {[%clk 0:01:48]} 17. e4 {[%clk 0:01:53]}  Be6 {[%clk 0:01:46]} 18. Kb1 {[%clk 0:01:48]}  Rhe8 {[%clk 0:01:45]} 19. Rg5 {[%clk 0:01:32]}  Nf6 {[%clk 0:01:33]} 20. Na4 {[%clk 0:01:24]}  Qa7 {[%clk 0:01:32]} 21. Qb4 {[%clk 0:01:20]}  Rxd6 {[%clk 0:01:18]} 22. Nb6+ {[%clk 0:01:11]}  Kc7 {[%clk 0:01:03]} 23. e5 {[%clk 0:01:11]}  Rdd8 {[%clk 0:01:00]} 0-1


[Site "https://www.chess.com"]